Body,Body Name,Date,Transaction Number,Amount,Supplier Name,Supplier ID,Expense Area,Expense Type,Expense Code,Extended Description ,Service Code,Service Label,Service Division Label,Service Division Code
http://statistics.data.gov.uk/id/local-authority/16UF,Eden District Council,06/09/2013,131327,1025,ENTERPRISE MANAGED SERVICES LTD,TFE001,Engineering Manager,Planned Maintenance,1016,DECORATE KITCHEN,LANDMA,Land Management,1015,Blue Bell Lane Units Penrith
http://statistics.data.gov.uk/id/local-authority/16UF,Eden District Council,06/09/2013,131332,532.5,ENTERPRISE MANAGED SERVICES LTD,TFE001,Engineering Manager,Building works,5502,SUPPLY/ERECT SECURITY FENCE,LANDMA,Land Management,6145,Reconstruction of CP Bowling Bower
http://statistics.data.gov.uk/id/local-authority/16UF,Eden District Council,06/09/2013,131335,531,ENTERPRISE MANAGED SERVICES LTD,TFE001,Engineering Manager,Planned Maintenance,1016,DECORATION,PUBCON,Public Conveniences,2277,Dufton Public Convenience
http://statistics.data.gov.uk/id/local-authority/16UF,Eden District Council,06/09/2013,131336,1069,ENTERPRISE MANAGED SERVICES LTD,TFE001,Engineering Manager,Planned Maintenance,1016,DECORATION,PUBCON,Public Conveniences,2273,Pooley Bridge Public Convenience
http://statistics.data.gov.uk/id/local-authority/16UF,Eden District Council,06/09/2013,131337,1375,ENTERPRISE MANAGED SERVICES LTD,TFE001,Engineering Manager,Planned Maintenance,1016,DECORATION,PUBCON,Public Conveniences,2279,Alston Town Hall Public Convenience
http://statistics.data.gov.uk/id/local-authority/16UF,Eden District Council,06/09/2013,131396,1250,DRAGONFLY DOCUMENTS,DRA003,Communities Manager,Consultancy,2180,ACCESSIBLE RECYCLING CALENDARS 2013-2015,CORPOR,Corporate Costs,1160,SP01 Document Design
http://statistics.data.gov.uk/id/local-authority/16UF,Eden District Council,06/09/2013,131397,624,ELECTRICITY NORTH WEST LTD,ELE005,Engineering Manager,Professional fees,2045,POLE NO 4 ROBIN HOOD HSE,FOOLIG,Footway Lighting,2258,Footway lighting
http://statistics.data.gov.uk/id/local-authority/16UF,Eden District Council,06/09/2013,131216,1479.55,UNITED UTILITIES WATER LTD,UNI008,Engineering Manager,Water charges � unmetered,1033,CAR PARK CHRISTIAN HEAD KIRKBY STEPHEN,OFFSTR,Vehicle Parking Off Street,2197,Kirkby Stephen Christian Head Car Park
http://statistics.data.gov.uk/id/local-authority/16UF,Eden District Council,06/09/2013,131246,2950,NPS NORTH WEST LTD,NPS001,Environmental Services,Professional fees,2045,PROFESSIONAL SERVICES NPS J HEWITSON,OHOUSG,Other Housing,2383,Affordable Housing Fund Revenue
http://statistics.data.gov.uk/id/local-authority/16UF,Eden District Council,06/09/2013,131248,921.57,VODAFONE LTD FORMERLY CABLE & WIRELESS UK,CAB001,Information Technology Manager,Telephone,2055,LINE RENTALS,CENTRA,Central Expenses,104,Telephones
http://statistics.data.gov.uk/id/local-authority/16UF,Eden District Council,06/09/2013,131258,1813.5,CAPITA SYMONDS LIMITED,CAP002,Planning Services,Professional fees,2045,ARBORICULTURAL SERVICES AUG 13,CONSER,Environmental Enhancement & Conversation,3012,Aboricutural Advice
http://statistics.data.gov.uk/id/local-authority/16UF,Eden District Council,06/09/2013,131261,29522.51,ENTERPRISE MANAGED SERVICES LTD,TFE001,Engineering Manager,Building works,5502,EDCEDEN05/1/130,LANDMA,Land Management,6145,Reconstruction of CP Bowling Bower
http://statistics.data.gov.uk/id/local-authority/16UF,Eden District Council,06/09/2013,131318,1995.65,redacted information,SOU022,Planning Services,Professional fees,2045,appeal costs ref: 12/0687 ,DEVCOE,Development Control & Enforcement,3010,Development Control & Enforcement
http://statistics.data.gov.uk/id/local-authority/16UF,Eden District Council,06/09/2013,131319,14816.36,NORTH COUNTRY LEISURE,NCL001,Communities Manager,NCL Ad-hoc Sports Pitches,1155,CERTIFICATE JULY 2013,LEICEN,Eden Leisure Centre & Appleby Swimming P,2130,Sports Facilities
http://statistics.data.gov.uk/id/local-authority/16UF,Eden District Council,06/09/2013,131323,1574.7,CUMBRIA COUNTY COUNCIL,CCC002,Engineering Manager,Professional fees,2045,SEARCHES JULY 2013,LANDCH,Land Charges,1002,Land Charges
http://statistics.data.gov.uk/id/local-authority/16UF,Eden District Council,06/09/2013,131353,874.17,ENTERPRISE MANAGED SERVICES LTD,TFE001,Environmental Services,Dog Contract O.O.H retainer,3200,KENNELLING STRAY DOG COLLECTION AUG 13,CODOGS,Community Wardens,3045,Dog Control
http://statistics.data.gov.uk/id/local-authority/16UF,Eden District Council,06/09/2013,131354,5416,ENTERPRISE PROSPECTS LTD,ENT004,Chief Executive's,Agency Staff,3,R HOOPER AUGUST 2013,CHIEXE,Chief Executive,50,Chief Executive
http://statistics.data.gov.uk/id/local-authority/16UF,Eden District Council,06/09/2013,131360,650,CUMBRIA WASTE RECYCLING LTD,CUM022,Engineering Manager,Promotional activity,2084,MAGNETIC SIGNS GARDEN WASTE SKIPS,RECYCL,Recycling,3047,Recycling
http://statistics.data.gov.uk/id/local-authority/16UF,Eden District Council,06/09/2013,131361,609,CUMBRIA WASTE RECYCLING LTD,CUM022,Engineering Manager,Garden Waste Skips,2014,GARDEN SKIPS AUGUST 2013,RECYCL,Recycling,3047,Recycling
http://statistics.data.gov.uk/id/local-authority/16UF,Eden District Council,06/09/2013,131364,5660,redacted information,HAL026,Environmental Services,Decent Homes Grants,5524,120077 MAULDS ME,DIREGR,1996 Discretionary Renovation Grants,6034,1996 Discretionary Renovation Grants
http://statistics.data.gov.uk/id/local-authority/16UF,Eden District Council,06/09/2013,131366,500,ROSALIND NIEDT,NIE002,Human Resources Manager,Welfare,80,COUNSELLING AUGUST 2013,CENTRA,Central Expenses,209,Welfare
http://statistics.data.gov.uk/id/local-authority/16UF,Eden District Council,06/09/2013,131377,5364,AMEC ENVIRONMENT & INFRASTRUCTURE UK LTD,AME003,Communities Manager,Professional fees,2045,EDEN DISTRICT SA & HRA FINAL REPORT,EDEVPR,Economic Development and Promotion,2020,Eden Business Park Phase 2
http://statistics.data.gov.uk/id/local-authority/16UF,Eden District Council,06/09/2013,131393,19202.78,CUMBRIA WASTE RECYCLING LTD,CUM022,Engineering Manager,Recycling - Bag & Box,3600,GB-004,RECYCL,Recycling,3047,Recycling
http://statistics.data.gov.uk/id/local-authority/16UF,Eden District Council,13/09/2013,131509,3000,WYG ENVIRONMENT PLANNING TRANSPORT,WYG001,Planning Services,Examinations in public,2155,PROFESSIONAL CONSULTANCY BRIDGE LANE PEN,LOPLPO,Local Plans & Policy,3008,Local Development Framework
http://statistics.data.gov.uk/id/local-authority/16UF,Eden District Council,13/09/2013,131365,2006,MARK HARROD LTD,HAR062,Communities Manager,Other charges for services,2047,SAMBA 3 IN 1 GOAL SETS,ARTLEI,Arts and Leisure,2116,Sports lesiure develop fund
http://statistics.data.gov.uk/id/local-authority/16UF,Eden District Council,13/09/2013,131398,624,ELECTRICITY NORTH WEST LTD,ELE005,Engineering Manager,Professional fees,2045,POLE NO 5 ADJ MIRFIELD,FOOLIG,Footway Lighting,2258,Footway lighting
http://statistics.data.gov.uk/id/local-authority/16UF,Eden District Council,13/09/2013,131399,624,ELECTRICITY NORTH WEST LTD,ELE005,Engineering Manager,Professional fees,2045,POLE NO 6 OPP BURWAIN TERR,FOOLIG,Footway Lighting,2258,Footway lighting
http://statistics.data.gov.uk/id/local-authority/16UF,Eden District Council,13/09/2013,131400,624,ELECTRICITY NORTH WEST LTD,ELE005,Engineering Manager,Professional fees,2045,POLE NO 6 1 STATION VIEW LONG MARTON,FOOLIG,Footway Lighting,2258,Footway lighting
http://statistics.data.gov.uk/id/local-authority/16UF,Eden District Council,13/09/2013,131401,624,ELECTRICITY NORTH WEST LTD,ELE005,Engineering Manager,Professional fees,2045,POLE 3 HARLGLADE BROUGH,FOOLIG,Footway Lighting,2258,Footway lighting
http://statistics.data.gov.uk/id/local-authority/16UF,Eden District Council,13/09/2013,131402,624,ELECTRICITY NORTH WEST LTD,ELE005,Engineering Manager,Professional fees,2045,POLE 7 BURWENS MAIN ST K THORE,FOOLIG,Footway Lighting,2258,Footway lighting
http://statistics.data.gov.uk/id/local-authority/16UF,Eden District Council,13/09/2013,131403,624,ELECTRICITY NORTH WEST LTD,ELE005,Engineering Manager,Professional fees,2045,POLE 29 NEW HOUSE BROUGH,FOOLIG,Footway Lighting,2258,Footway lighting
http://statistics.data.gov.uk/id/local-authority/16UF,Eden District Council,13/09/2013,131404,624,ELECTRICITY NORTH WEST LTD,ELE005,Engineering Manager,Professional fees,2045,POLE 26 CHOFHS FLORIST BROUGH,FOOLIG,Footway Lighting,2258,Footway lighting
http://statistics.data.gov.uk/id/local-authority/16UF,Eden District Council,13/09/2013,130384,1428,QUATTRO PRODUCTS LTD,QUA002,Engineering Manager,Ground Maintenance SOR & Dayworks,1088,PLAYGROUND REPAIRS VARIOUS,PARKOS,Parks and Open Spaces,2129,Open spaces
http://statistics.data.gov.uk/id/local-authority/16UF,Eden District Council,13/09/2013,130880,510,RENTOKIL INITIAL HYGIENE UK LTD,REN007,Engineering Manager,Water testing,1026,LEOGIONELLA RISK ASSESMENT TOWN HALL,ADMBLD,Administrative Buildings,500,Town Hall
http://statistics.data.gov.uk/id/local-authority/16UF,Eden District Council,13/09/2013,131194,756.09,BADENOCH AND CLARK,ADE001,Revenue/Benefits Manager,Supplies general,2015,redacted information,CTXBEN,Council Tax Benefits,1164,Local Council Tax Scheme
http://statistics.data.gov.uk/id/local-authority/16UF,Eden District Council,13/09/2013,131224,1085.38,ROYAL MAIL NW,ROY001,Revenue/Benefits Manager,Postages,2054,1ST AND 2ND CLASS MAIL 24/7/13-13/8/13,REVBEN,Revenue & Benefits,106,Revenues
http://statistics.data.gov.uk/id/local-authority/16UF,Eden District Council,13/09/2013,131270,719.51,BADENOCH AND CLARK,ADE001,Revenue/Benefits Manager,Supplies general,2015,redacted information,CTXBEN,Council Tax Benefits,1164,Local Council Tax Scheme
http://statistics.data.gov.uk/id/local-authority/16UF,Eden District Council,13/09/2013,131271,2117.12,NORTHGATE INFORMATION SOLUTIONS UK LIMITED,NOR009,Revenue/Benefits Manager,Software � maintenance,2067,PARIS CVC 3D INDEXATION,REVBEN,Revenue & Benefits,106,Revenues
http://statistics.data.gov.uk/id/local-authority/16UF,Eden District Council,13/09/2013,131371,546,Denise Calvert Ltd,CAL019,Revenue/Benefits Manager,Supplies general,2015,BENEFIT WORK 14 & 15/08/13,CTXBEN,Council Tax Benefits,1164,Local Council Tax Scheme
http://statistics.data.gov.uk/id/local-authority/16UF,Eden District Council,13/09/2013,131375,6139.81,SKIRWITH CHILDRENS COMMITTEE,SKI006,Communities Manager,Balance Sheet entry BS,6003,EDEN COMMUNITY FUND 80%,CENTRA,Central Expenses,10400,Community Fund
http://statistics.data.gov.uk/id/local-authority/16UF,Eden District Council,13/09/2013,131380,20112.92,TREVOR ATKINSON & CO LTD,ATK017,Engineering Manager,Capital grants,5505,CERTIFICATE NO 04,holdac,holding account,6064,Coronation Gardens Penrith
http://statistics.data.gov.uk/id/local-authority/16UF,Eden District Council,13/09/2013,131384,902.43,BADENOCH AND CLARK,ADE001,Revenue/Benefits Manager,Supplies general,2015,redacted information,CTXBEN,Council Tax Benefits,1164,Local Council Tax Scheme
http://statistics.data.gov.uk/id/local-authority/16UF,Eden District Council,13/09/2013,131391,2923.25,ENTERPRISE MANAGED SERVICES LTD,TFE001,Engineering Manager,FL  Contract,3300,FL-05/2013,FOOLIG,Footway Lighting,2258,Footway lighting
http://statistics.data.gov.uk/id/local-authority/16UF,Eden District Council,13/09/2013,131453,500,MR JAMIE ANDERSON,AND013,Legal Services Manager,Professional fees,2045,CARLISLE EMPLOYMENT TRIBUNAL 19/8/13,LEGSER,Legal Services,201,Legal & Committee
http://statistics.data.gov.uk/id/local-authority/16UF,Eden District Council,13/09/2013,131460,546,Denise Calvert Ltd,CAL019,Revenue/Benefits Manager,Supplies general,2015,BENEFIT WORK 21 & 22/08/13,CTXBEN,Council Tax Benefits,1164,Local Council Tax Scheme
http://statistics.data.gov.uk/id/local-authority/16UF,Eden District Council,13/09/2013,131463,556.83,BRITISH TRIATHLON FEDERATION LIMITED,BRI030,Communities Manager,Other charges for services,2047,EVENT REGISTRATION/DAY MEMBERSHIP,ARTLEI,Arts and Leisure,2116,Sports lesiure develop fund
http://statistics.data.gov.uk/id/local-authority/16UF,Eden District Council,13/09/2013,131473,500,NORTH KESTEVEN DISTRICT COUNCIL,NOR002,Communities Manager,Grants and contributions,2079,VOLUNTARY CONTRIBUTION FAIRER FUNDING,COMDEV,Community Development & Engagement,1066,SPARSE
http://statistics.data.gov.uk/id/local-authority/16UF,Eden District Council,13/09/2013,131475,560.5,UNITED UTILITIES WATER LTD,UNI008,Engineering Manager,Water charges � metered,1032,PCS BUS STATION SANDGATE,PUBCON,Public Conveniences,2269,Penrith Sandgate Public Convenience
http://statistics.data.gov.uk/id/local-authority/16UF,Eden District Council,13/09/2013,131486,505.52,NATIONAL EXPRESS LTD,NAT019,Communities Manager,Commission,7504,COACH TICKETS,TAPTIC,Penrith TIC Trading Account,9275,PEN TIC - NATIONAL EXPRESS TICKETS
http://statistics.data.gov.uk/id/local-authority/16UF,Eden District Council,13/09/2013,131487,7250,CUMBRIA WASTE RECYCLING LTD,CUM022,Engineering Manager,Recycling  - Bring Sites,3601,BS-13,RECYCL,Recycling,3047,Recycling
http://statistics.data.gov.uk/id/local-authority/16UF,Eden District Council,13/09/2013,131488,1000,redacted information,UDA001,Environmental Services,Landlords Grants,5525,FINAL PAYMENT ,DIREGR,1996 Discretionary Renovation Grants,6034,1996 Discretionary Renovation Grants
http://statistics.data.gov.uk/id/local-authority/16UF,Eden District Council,13/09/2013,131490,1238.93,ENTERPRISE MANAGED SERVICES LTD,TFE001,Engineering Manager,Refuse Contract Dayworks,3012,RC10,REFCOL,Refuse Collection,3049,Refuse Collection Domestic
http://statistics.data.gov.uk/id/local-authority/16UF,Eden District Council,13/09/2013,131491,4928.12,ENTERPRISE MANAGED SERVICES LTD,TFE001,Environmental Services,Ref Col Adhoc Works,1083,SC9,APFAIR,Appleby Fair,3036,Appleby Fair
http://statistics.data.gov.uk/id/local-authority/16UF,Eden District Council,13/09/2013,131495,980,CIPFA,CIP001,Revenue/Benefits Manager,Supplies general,2015,NNDR LIABILITY & RELIEFS TRAINING,CTXBEN,Council Tax Benefits,1164,Local Council Tax Scheme
http://statistics.data.gov.uk/id/local-authority/16UF,Eden District Council,13/09/2013,131497,770,ATKINSON BUILDING CONTRACTORS,ATK009,Planning Services,Charges for services,8000,REFUND 3/13/0204 FAILED BACS PAYMENT,DEVCOE,Development Control & Enforcement,3010,Development Control & Enforcement
http://statistics.data.gov.uk/id/local-authority/16UF,Eden District Council,13/09/2013,131502,540,CIPFA,CIP001,Human Resources Manager,Training Expenses,60,CIPFA FAN WORKSHOP ,STADEV,Staff Development,224,Staff Training DoF
http://statistics.data.gov.uk/id/local-authority/16UF,Eden District Council,13/09/2013,131507,978.64,GATESTRAVEL,GAT004,Environmental Services,Public transport,1503,RAIL FARES/ACCOMODATION,SUSPAC,Suspense Account,9420,District Councils Network
http://statistics.data.gov.uk/id/local-authority/16UF,Eden District Council,13/09/2013,131512,750.98,UNITED UTILITIES WATER LTD,UNI008,Engineering Manager,Water charges � metered,1032,PCS BLUEBELL LANE 25.05.13-30.08.13,PUBCON,Public Conveniences,2267,Penrith Bluebell Lane Public Convenience
http://statistics.data.gov.uk/id/local-authority/16UF,Eden District Council,13/09/2013,131513,522.31,CARRIER DIRECT,CAR010,Communities Manager,Distribution,2051,AUGUST 2013 FULFILMENT COSTS,TOUPRO,Tourism Promotion,2056,Eden Tourism
http://statistics.data.gov.uk/id/local-authority/16UF,Eden District Council,13/09/2013,131516,1698,HER MAJESTYS' COURT SERVICES,HMC001,Revenue/Benefits Manager,Legal and court costs,2046,CTNDRLOS 26.06.13 COURT,LOCTAX,Collection of Local Taxation,1006,Council Tax
http://statistics.data.gov.uk/id/local-authority/16UF,Eden District Council,13/09/2013,131528,10415.14,PENRITH B I D,PEN063,Revenue/Benefits Manager,Control account system code,6009,AS PER AUGUST STATEMENT,SUSPAC,Suspense Account,8108,Penrith BID Cash
http://statistics.data.gov.uk/id/local-authority/16UF,Eden District Council,20/09/2013,131458,1500,AZTEX SOLUTION LTD,AZT002,Information Technology Manager,Computer equipment,2061,INTEL CORE 4 GB HD,INFTEC,Information Technology,102,Information Technology
http://statistics.data.gov.uk/id/local-authority/16UF,Eden District Council,20/09/2013,131607,2400,M JOHNSTON DESIGNS,JOH025,Engineering Manager,Building Maintenance,1000,WORKS TO MANSION HOUSE CAR PARK,ADMBLD,Administrative Buildings,502,Mansion House
http://statistics.data.gov.uk/id/local-authority/16UF,Eden District Council,20/09/2013,131641,1988.24,WYBONE LTD,WYB001,Engineering Manager,Litter bins,2022,LITTER BINS/LINERS,PROAME,Provision of Ameneties,2252,Provision of Amenities
http://statistics.data.gov.uk/id/local-authority/16UF,Eden District Council,20/09/2013,131250,1648.81,CIVICA SERVICES LTD,CIV001,Information Technology Manager,Software � purchase,2066,PHOTOSHOP LICENCE,INFTEC,Information Technology,102,Information Technology
http://statistics.data.gov.uk/id/local-authority/16UF,Eden District Council,20/09/2013,131492,970.14,PROBRAND LIMITED,PRO008,Information Technology Manager,Computer equipment,2061,E2210PM-BN/VS248H,INFTEC,Information Technology,102,Information Technology
http://statistics.data.gov.uk/id/local-authority/16UF,Eden District Council,20/09/2013,131493,557.76,LAKELAND OFFICE  LTD,LAK004,Environmental Services,Promotional activity,2084,STATIONERY/PAPER /HOLE PUNCH/RISER/ROLLS,CODOGS,Community Wardens,3045,Dog Control
http://statistics.data.gov.uk/id/local-authority/16UF,Eden District Council,20/09/2013,131496,1395,S A ASSOCIATES MANAGEMENT TRAINING LTD,SAA001,Human Resources Manager,Safety training  205800 only,2074,NEBOSH ,STADEV,Staff Development,222,Central Training Budget
http://statistics.data.gov.uk/id/local-authority/16UF,Eden District Council,20/09/2013,131503,4896.44,THE KNACK DESIGN CONSULTANTS LTD,KNA001,Communities Manager,Capital grants,5505,PENRITH PEDESTRIAN - ADDITIONAL WORKS,SUSPAC,Suspense Account,6134,Penrith Town Centre Regeneration
http://statistics.data.gov.uk/id/local-authority/16UF,Eden District Council,20/09/2013,130886,875,RENTOKIL INITIAL HYGIENE UK LTD,REN007,Engineering Manager,Water testing,1026,LEGIONELLA RISK ASS MANSION HOUSE/BROUGH TOILETS,PUBCON,Public Conveniences,2286,Brough Public Convenience
http://statistics.data.gov.uk/id/local-authority/16UF,Eden District Council,20/09/2013,131227,977,BISHOPS PRINTERS GROUP - THE MAILING PEOPLE,BIS001,Engineering Manager,Calendars,2175,RECYCLING CALENDAR PRINT,RECYCL,Recycling,3047,Recycling
http://statistics.data.gov.uk/id/local-authority/16UF,Eden District Council,20/09/2013,131320,1358,BISHOPS PRINTERS GROUP - THE MAILING PEOPLE,BIS001,Engineering Manager,Supplies general,2015,25500 RECYCLING CALENDAR MAILING,RECYCL,Recycling,3047,Recycling
http://statistics.data.gov.uk/id/local-authority/16UF,Eden District Council,20/09/2013,131379,21666.67,CUMBRIA WASTE RECYCLING LTD,CUM022,Engineering Manager,Recycling - Garden Waste,3602,GW-004,RECYCL,Recycling,3047,Recycling
http://statistics.data.gov.uk/id/local-authority/16UF,Eden District Council,20/09/2013,131575,691.87,HEWLETT PACKARD LTD,HEW005,Information Technology Manager,Printers Contract,2059,BILLING PERIOD 01.08.13-31.08.13,INFTEC,Information Technology,102,Information Technology
http://statistics.data.gov.uk/id/local-authority/16UF,Eden District Council,20/09/2013,131579,2447.2,WALTON GOODLAND LTD,WAL008,Engineering Manager,Land Management Contract,2126,RATE FOR SURVEYOR AUG 13 VARIOUS,LANDMA,Land Management,1007,Land Management
http://statistics.data.gov.uk/id/local-authority/16UF,Eden District Council,20/09/2013,131580,3501.36,E.ON ENERGY,EON001,Engineering Manager,Electricity,1022,STREET LIGHTING,FOOLIG,Footway Lighting,2258,Footway lighting
http://statistics.data.gov.uk/id/local-authority/16UF,Eden District Council,20/09/2013,131586,874.17,ENTERPRISE MANAGED SERVICES LTD,TFE001,Environmental Services,Dog Contract O.O.H retainer,3200,KENNELLING SERVICE SEPTEMBER 13,CODOGS,Community Wardens,3045,Dog Control
http://statistics.data.gov.uk/id/local-authority/16UF,Eden District Council,20/09/2013,131587,789.45,PENRITH PLAYERS THEATRE LTD,PEN002,Communities Manager,Commission,7504,TICKET SALES MY BRILLIANT DIVORCE,TAPTIC,Penrith TIC Trading Account,9164,Penrith TIC - Penrith Players
http://statistics.data.gov.uk/id/local-authority/16UF,Eden District Council,20/09/2013,131589,804.87,BADENOCH AND CLARK,ADE001,Revenue/Benefits Manager,Supplies general,2015,redacted information,CTXBEN,Council Tax Benefits,1164,Local Council Tax Scheme
http://statistics.data.gov.uk/id/local-authority/16UF,Eden District Council,20/09/2013,131590,11046.36,NORTH COUNTRY LEISURE,NCL001,Communities Manager,NCL Castletown Rec Grounds,1154,VALUATION 5/13-14 AUGUST 2013,LEICEN,Eden Leisure Centre & Appleby Swimming P,2130,Sports Facilities
http://statistics.data.gov.uk/id/local-authority/16UF,Eden District Council,20/09/2013,131598,1600,M TAYLOR ASSOCIATES LTD,TAY017,Human Resources Manager,Professional fees,2045,HR SUPPORT JULY/AUGUST 2013,HUMRES,Human Resources,207,Human Resources
http://statistics.data.gov.uk/id/local-authority/16UF,Eden District Council,20/09/2013,131601,50721.53,ENTERPRISE MANAGED SERVICES LTD,TFE001,Engineering Manager,Building works,5502,CERTIFICATE 3,CENTRA,Central Expenses,6145,Reconstruction of CP Bowling Bower
http://statistics.data.gov.uk/id/local-authority/16UF,Eden District Council,20/09/2013,131608,560,Denise Calvert Ltd,CAL019,Revenue/Benefits Manager,Supplies general,2015,BENEFIT WORK 04 & 05/09/13,CTXBEN,Council Tax Benefits,1164,Local Council Tax Scheme
http://statistics.data.gov.uk/id/local-authority/16UF,Eden District Council,20/09/2013,131611,2923.25,ENTERPRISE MANAGED SERVICES LTD,TFE001,Engineering Manager,FL  Contract,3300,FL - 06/2013,FOOLIG,Footway Lighting,2258,Footway lighting
http://statistics.data.gov.uk/id/local-authority/16UF,Eden District Council,20/09/2013,131615,-1620.96,CIVICA SERVICES LTD,CIV001,Information Technology Manager,Web Services,2065,CREDIT ITEMS CANCELLED INV 1031479,INFTEC,Information Technology,102,Information Technology
http://statistics.data.gov.uk/id/local-authority/16UF,Eden District Council,20/09/2013,131625,32207.05,ENTERPRISE MANAGED SERVICES LTD,TFE001,Engineering Manager,GM INSPECTIONS & MAINTENANCE,1089,M-GN 18,CLCHYD,Closed Church Yards,2246,War Memorials
http://statistics.data.gov.uk/id/local-authority/16UF,Eden District Council,20/09/2013,131647,896,NE40 - RACE TIMING SERVICE,NE4001,Communities Manager,Other charges for services,2047,RACE TIMING PENRITH TRIATHLON 2013,ARTLEI,Arts and Leisure,2116,Sports lesiure develop fund
http://statistics.data.gov.uk/id/local-authority/16UF,Eden District Council,27/09/2013,131761,6510,AZTEX SOLUTION LTD,AZT002,Information Technology Manager,Computer equipment,2061,2739161 MBX2VUK,INFTEC,Information Technology,102,Information Technology
http://statistics.data.gov.uk/id/local-authority/16UF,Eden District Council,27/09/2013,131328,2756.16,ENTERPRISE MANAGED SERVICES LTD,TFE001,Engineering Manager,Planned Maintenance,1016,ACCEPTANCE OF QUOTATION,ADMBLD,Administrative Buildings,500,Town Hall
http://statistics.data.gov.uk/id/local-authority/16UF,Eden District Council,27/09/2013,131330,1777,ENTERPRISE MANAGED SERVICES LTD,TFE001,Engineering Manager,Planned Maintenance,1016,ROOFING WORK TO SHELTER,ADMBLD,Administrative Buildings,500,Town Hall
http://statistics.data.gov.uk/id/local-authority/16UF,Eden District Council,27/09/2013,131333,862,ENTERPRISE MANAGED SERVICES LTD,TFE001,Engineering Manager,Planned Maintenance,1016,CARRY OUT RE-DECORATION,ADMBLD,Administrative Buildings,500,Town Hall
http://statistics.data.gov.uk/id/local-authority/16UF,Eden District Council,27/09/2013,131342,2680.88,ENTERPRISE MANAGED SERVICES LTD,TFE001,Engineering Manager,Planned Maintenance,1016,CEILING DECORATION,ADMBLD,Administrative Buildings,500,Town Hall
http://statistics.data.gov.uk/id/local-authority/16UF,Eden District Council,27/09/2013,131499,1575,VODAFONE LTD FORMERLY CABLE & WIRELESS UK,CAB001,Information Technology Manager,Telephone,2055,SERVICES/ANNUAL RENTAL CHARGES 13/14,CENTRA,Central Expenses,104,Telephones
http://statistics.data.gov.uk/id/local-authority/16UF,Eden District Council,27/09/2013,131582,3040,TOP NOTCH CONTRACTORS LTD,TOP003,Environmental Services,Capital grants,5505,FINAL PAYMENT,MEREGR,1996 Mandatory Renovation Grants,6035,Disabled Facility Grants
http://statistics.data.gov.uk/id/local-authority/16UF,Eden District Council,27/09/2013,131624,7086.5,MCDOUGALL BUILDING CONTRACTORS,MCD002,Environmental Services,Capital grants,5505, CALTHWAITE 120011/int,MEREGR,1996 Mandatory Renovation Grants,6035,Disabled Facility Grants
http://statistics.data.gov.uk/id/local-authority/16UF,Eden District Council,27/09/2013,131631,66137.34,ENTERPRISE MANAGED SERVICES LTD,TFE001,Engineering Manager,Contract refuse collection,3003,M-RC 18,REFCOL,Refuse Collection,3050,Clinical Expenditure
http://statistics.data.gov.uk/id/local-authority/16UF,Eden District Council,27/09/2013,131632,16550.88,ENTERPRISE MANAGED SERVICES LTD,TFE001,Environmental Services,Street Cleaning Contract,3100,M-SC 18,APFAIR,Appleby Fair,3036,Appleby Fair
http://statistics.data.gov.uk/id/local-authority/16UF,Eden District Council,27/09/2013,131635,1345.3,FLORENCE MADDEN ASSOCIATES,FLO004,Human Resources Manager,Advertising,50,MCQUAIG WORD SURVEY,CENTRA,Central Expenses,208,Staff Recruitment
http://statistics.data.gov.uk/id/local-authority/16UF,Eden District Council,27/09/2013,131644,14721.52,ENTERPRISE MANAGED SERVICES LTD,TFE001,Engineering Manager,Window cleaning,1040,2013-BC-6,PUBCON,Public Conveniences,2630,Disabled Toilet Moot Hall Appleby
http://statistics.data.gov.uk/id/local-authority/16UF,Eden District Council,27/09/2013,131713,13756,GRANT THORNTON UK LLP,THO026,Financial Services Manager,Audit fee,2043,2013/14 INSTALMENT 1 OF 4,CORPOR,Corporate Costs,1065,Audit Fee
http://statistics.data.gov.uk/id/local-authority/16UF,Eden District Council,27/09/2013,131736,1509.3,ENTERPRISE MANAGED SERVICES LTD,TFE001,Engineering Manager,Ground Maintenance SOR & Dayworks,1088,CERTIFICATE 29 GROUNDS MAINT,CEMETE,Cemeteries,2229,Alston Moor Cemetery
http://statistics.data.gov.uk/id/local-authority/16UF,Eden District Council,27/09/2013,131737,1278.02,ENTERPRISE MANAGED SERVICES LTD,TFE001,Engineering Manager,Ground Maintenance SOR & Dayworks,1088,CERTIFICATE 30 GROUNDS MAINT,PARKOS,Parks and Open Spaces,2129,Open spaces
http://statistics.data.gov.uk/id/local-authority/16UF,Eden District Council,27/09/2013,131745,1007.28,LOCAL GOVERNMENT ASSOCIATION,LOC005,Legal Services Manager,Professional fees,2045,RECHARGE OF LEGAL FEES PROPERTY SEARCHES,LEGSER,Legal Services,201,Legal & Committee
http://statistics.data.gov.uk/id/local-authority/16UF,Eden District Council,27/09/2013,131756,4275,COUNTRY STYLE WINDOWS,COU009,Environmental Services,Decent Homes Grants,5524,FINAL PAYMENT  PENRITH INV 6842,DIREGR,1996 Discretionary Renovation Grants,6034,1996 Discretionary Renovation Grants
http://statistics.data.gov.uk/id/local-authority/16UF,Eden District Council,27/09/2013,131759,1265.65,ENTERPRISE MANAGED SERVICES LTD,TFE001,Engineering Manager,Street Cleaning Contract,3100,SC11,STRCLE,Street Cleaning,2248,Fly tipping on verge
http://statistics.data.gov.uk/id/local-authority/16UF,Eden District Council,27/09/2013,131760,1275.47,ENTERPRISE MANAGED SERVICES LTD,TFE001,Engineering Manager,RC Civic amenitites,3015,RC12,REFCOL,Refuse Collection,3049,Refuse Collection Domestic
http://statistics.data.gov.uk/id/local-authority/16UF,Eden District Council,27/09/2013,131763,7250,CUMBRIA WASTE RECYCLING LTD,CUM022,Engineering Manager,Recycling  - Bring Sites,3601,BS-14,RECYCL,Recycling,3047,Recycling
http://statistics.data.gov.uk/id/local-authority/16UF,Eden District Council,27/09/2013,130978,545.65,OTIS LIMITED,OTI001,Director of Corporate and Legal Services,Building works,5502,FAULT ON LIFT TOWN HALL,CENTRA,Central Expenses,6144,Land Assembley - Town Hall Site
http://statistics.data.gov.uk/id/local-authority/16UF,Eden District Council,27/09/2013,131609,6241.4,ASTUN TECHNOLOGY LIMITED,AST004,Information Technology Manager,Web Services,2065,ANNUAL MAINTENANCE NOV 2013 - OCT 2014,INFTEC,Information Technology,102,Information Technology
http://statistics.data.gov.uk/id/local-authority/16UF,Eden District Council,27/09/2013,131622,715.88,CANON UK LIMITED,CAN001,Information Technology Manager,Photocopying expenses,2038,IR ADV C7065I PLANNING MANSION HOUSE,CENTRA,Central Expenses,107,Printing - Information Technology
http://statistics.data.gov.uk/id/local-authority/16UF,Eden District Council,27/09/2013,131623,715.88,CANON UK LIMITED,CAN001,Information Technology Manager,Photocopying expenses,2038,IR ADV C7065I PRINT ROOM TOWN HALL,CENTRA,Central Expenses,107,Printing - Information Technology
http://statistics.data.gov.uk/id/local-authority/16UF,Eden District Council,27/09/2013,131646,926.82,BADENOCH AND CLARK,ADE001,Revenue/Benefits Manager,Supplies general,2015,redacted information,CTXBEN,Council Tax Benefits,1164,Local Council Tax Scheme
http://statistics.data.gov.uk/id/local-authority/16UF,Eden District Council,27/09/2013,131648,1059,GREYSTOKE SWIMMING POOL,GRE020,Communities Manager,Grants and contributions,2079,EDC POOL GRANT 2013 2ND PAYMENT,ARTLEI,Arts and Leisure,2107,Rural pool grants
http://statistics.data.gov.uk/id/local-authority/16UF,Eden District Council,27/09/2013,131649,1483,SHAP SWIMMING POOL,SHA011,Communities Manager,Grants and contributions,2079,EDC POOL GRANT 2013 2ND PAYMENT,ARTLEI,Arts and Leisure,2107,Rural pool grants
http://statistics.data.gov.uk/id/local-authority/16UF,Eden District Council,27/09/2013,131650,1007,LAZONBY SWIMMING POOL ASSOCIATION,LAZ003,Communities Manager,Grants and contributions,2079,EDC POOL GRANT 2013 2ND PAYMENT,ARTLEI,Arts and Leisure,2107,Rural pool grants
http://statistics.data.gov.uk/id/local-authority/16UF,Eden District Council,27/09/2013,131652,625,HUNSONBY SWIMMING POOL,HUN003,Communities Manager,Grants and contributions,2079,EDC POOL GRANT 2013 2ND PAYMENT,ARTLEI,Arts and Leisure,2107,Rural pool grants
http://statistics.data.gov.uk/id/local-authority/16UF,Eden District Council,27/09/2013,131653,1007,ASKHAM SWIMMING POOL,ASK009,Communities Manager,Grants and contributions,2079,EDC POOL GRANT 2013 2ND PAYMENT,ARTLEI,Arts and Leisure,2107,Rural pool grants
http://statistics.data.gov.uk/id/local-authority/16UF,Eden District Council,27/09/2013,131711,546,Denise Calvert Ltd,CAL019,Revenue/Benefits Manager,Supplies general,2015,BENEFIR WORK 11 & 12/9/13,CTXBEN,Council Tax Benefits,1164,Local Council Tax Scheme
http://statistics.data.gov.uk/id/local-authority/16UF,Eden District Council,27/09/2013,131730,743.63,NORTH COUNTRY LEISURE,NCL001,Communities Manager,Other charges for services,2047,TRIATHLON FOOD/MARSHALLS ETC.,ARTLEI,Arts and Leisure,2116,Sports lesiure develop fund
http://statistics.data.gov.uk/id/local-authority/16UF,Eden District Council,27/09/2013,131735,1247.72,ROYAL MAIL NW,ROY001,Revenue/Benefits Manager,Postages,2054,POSTAGE 14/8/13 - 10/9/13,REVBEN,Revenue & Benefits,106,Revenues
http://statistics.data.gov.uk/id/local-authority/16UF,Eden District Council,27/09/2013,131743,876.28,RENTOKIL INITIAL PEST CONTROL,REN009,Environmental Services,Pest Control,3400,PESTS OCT 2013,PESCON,Pest Control,3043,Pest Control
http://statistics.data.gov.uk/id/local-authority/16UF,Eden District Council,27/09/2013,131767,780.48,BADENOCH AND CLARK,ADE001,Revenue/Benefits Manager,Supplies general,2015,redacted information,CTXBEN,Council Tax Benefits,1164,Local Council Tax Scheme
http://statistics.data.gov.uk/id/local-authority/16UF,Eden District Council,27/09/2013,130965,9150,VODAFONE LTD FORMERLY CABLE & WIRELESS UK,CAB001,Information Technology Manager,Telephone,2055,PHONE CHARGES 01.09.13-31.08.14,CENTRA,Central Expenses,104,Telephones
http://statistics.data.gov.uk/id/local-authority/16UF,Eden District Council,04/10/2013,131901,21957,LAR LIMITED,LAR003,Director of Corporate and Legal Services,Building works,5502,ASBESTOS REMOVAL MAGISTRATES/COOP,LANDMA,Land Management,6144,Land Assembley - Town Hall Site
http://statistics.data.gov.uk/id/local-authority/16UF,Eden District Council,04/10/2013,131768,3000,ENTERPRISE MANAGED SERVICES LTD,TFE001,Engineering Manager,GM External Contractors,1080,CERTIFICATE NO: 31,PARKOS,Parks and Open Spaces,2140,Castle Park grounds
http://statistics.data.gov.uk/id/local-authority/16UF,Eden District Council,04/10/2013,131772,596,CUMBRIA WASTE RECYCLING LTD,CUM022,Engineering Manager,Garden Waste Skips,2014,VILLAGE SKIPS AUG 2013,RECYCL,Recycling,3047,Recycling
http://statistics.data.gov.uk/id/local-authority/16UF,Eden District Council,04/10/2013,131774,21666.67,CUMBRIA WASTE RECYCLING LTD,CUM022,Engineering Manager,Recycling - Garden Waste,3602,GW-005,RECYCL,Recycling,3047,Recycling
http://statistics.data.gov.uk/id/local-authority/16UF,Eden District Council,04/10/2013,131775,19202.78,CUMBRIA WASTE RECYCLING LTD,CUM022,Engineering Manager,Recycling - Bag & Box,3600,GB-005,RECYCL,Recycling,3047,Recycling
http://statistics.data.gov.uk/id/local-authority/16UF,Eden District Council,04/10/2013,131838,1285,HAYMARKET PUBLISHING SERVICES,HAY005,Human Resources Manager,Advertising,50,ADVERTISING,CENTRA,Central Expenses,208,Staff Recruitment
http://statistics.data.gov.uk/id/local-authority/16UF,Eden District Council,04/10/2013,131851,5447.32,ENTERPRISE PROSPECTS LTD,ENT004,Chief Executive's,Agency Staff,3,R HOOPER SEPTEMBER 2013,CHIEXE,Chief Executive,50,Chief Executive
http://statistics.data.gov.uk/id/local-authority/16UF,Eden District Council,04/10/2013,131899,628.04,BADENOCH AND CLARK,ADE001,Revenue/Benefits Manager,Staff Contingency,4,redacted information,REVBEN,Revenue & Benefits,106,Revenues
http://statistics.data.gov.uk/id/local-authority/16UF,Eden District Council,04/10/2013,131903,841.46,BADENOCH AND CLARK,ADE001,Revenue/Benefits Manager,Staff Contingency,4,redacted information,REVBEN,Revenue & Benefits,106,Revenues
http://statistics.data.gov.uk/id/local-authority/16UF,Eden District Council,27/09/2013,131963,1638,BUSY BEES CHILDCARE VOUCHERS,BUS004,Environmental Services,Child Care Voucher Scheme,5,SEPTEMBER CHILDCARE VOUCHERS,ENVSER,Environmental Services,303,Environmental Services
http://statistics.data.gov.uk/id/local-authority/16UF,Eden District Council,41533,121547,758.43,santander girobank charges,san001,Financial Services Manager,Bank charges,2088,santander girobank charges,CORPOR,Corporate Costs,1064,Bank Charges
http://statistics.data.gov.uk/id/local-authority/16UF,Eden District Council,41541,121822,2554.92,barclays commission charges,bbb001,Financial Services Manager,Bank charges,2088,barclays commission charges,CORPOR,Corporate Costs,1064,Bank Charges
